[Event "Czech Championship U20 Open 2023"]
[Site "Jaromerice nad Rokytnou"]
[Date "2023.03.17"]
[Round "10.3"]
[White "Mach, Petr"]
[Black "Gnojek, Petr"]
[Result "0-1"]
[ECO "B08"]
[WhiteElo "2167"]
[BlackElo "2313"]
[Annotator "TA"]
[PlyCount "54"]
[EventDate "2023.03.10"]
[EventType "tourn"]
[EventCountry "CZE"]
[SourceTitle "playchess.com"]
[Source "ChessBase"]
[SourceQuality "1"]
[TimeControl "40/5400+30:1800+30"]

{[%evp 17,54,11,30,8,8,4,1,-29,-25,-37,-35,-41,-38,-42,-36,-37,-37,-46,-45,-60,-46,-73,-73,-85,-87,-78,-88,-83,-64,-89,-104,-128,-133,-139,-138,-142,-121,-162,-158]} 1. Nf3 {[%emt 0:00:02]} g6 {[%emt 0:00:06]} 2. d4 {[%emt 0:00:05]} Bg7 {[%emt 0:00:04]} 3. e4 {[%emt 0:00:07]} d6 {[%emt 0:00:07]} 4. Nc3 {[%emt 0:02:09]} Nf6 {[%emt 0:00:09]} 5. Bc4 {[%emt 0:00:24]} O-O {[%emt 0:00:19]} 6. O-O {[%emt 0:00:06]} Nxe4 {[%emt 0:09:05]} 7. Nxe4 {[%emt 0:00:05]} d5 {[%emt 0:00:02]} 8. Bd3 {[%emt 0:00:06]} dxe4 {[%emt 0:00:04]} 9. Bxe4 {[%emt 0:00:06]} Nd7 {[%emt 0:00:08]} 10. Bg5 {[%emt 0:05:54] B08: Pirc Defence: Classical System.} Nf6 {[%emt 0:07:19]} 11. Bd3 {[%emt 0:00:07]} Bg4 {[%emt 0:04:49]} 12. c3 {[%emt 0:00:30] The position is equal.} Qd5 {[%emt 0:00:27] [#] ...Bxf3 would be deadly.} 13. Bf4 {[%emt 0:01:23]} Bxf3 {[%emt 0:05:05]} 14. Qxf3 {[%emt 0:00:04]} Qxf3 {[%emt 0:00:05]} 15. gxf3 {[%emt 0:00:07] [#]} Rac8 $146 {[%emt 0:00:12]} ({Predecessor:} 15... c6 16. a4 Nd5 17. Bd2 e5 18. dxe5 Bxe5 19. Bc4 Bf4 20. Rfd1 Bxd2 21. Rxd2 Nb6 {½-½ Team Rex-Team Randy Sinquefield Cup Ultimate Moves rapid 2014 (2)}) 16. Be4 {[%emt 0:03:33]} c6 {[%emt 0:02:27]} 17. Be5 {[%emt 0:02:21]} Nd5 {[%emt 0:00:54]} 18. Rfe1 {[%emt 0:04:34]} e6 {[%emt 0:03:10]} 19. Bxg7 {[%emt 0:05:55]} Kxg7 {[%emt 0:00:04]} 20. Rad1 {[%emt 0:00:17]} Rfd8 {[%emt 0:01:31]} 21. Kg2 {[%emt 0:00:21]} Nf4+ {[%emt 0:01:49]} 22. Kg3 {[%emt 0:00:15]} g5 {[%emt 0:00:10]} 23. b4 {[%emt 0:04:36]} h6 {[%emt 0:08:30][%cal Oa7a5]} 24. Bc2 {[%emt 0:01:02]} b6 {[%emt 0:01:43]} 25. Bb3 {[%emt 0:02:10]} Kf6 {[%emt 0:15:36]} 26. Re5 {[%emt 0:00:19]} Ke7 {[%emt 0:01:40]} 27. h4 {[%emt 0:00:36]} Ng6 {[%emt 0:00:48][%csl LRe5,LRh4] White got outplayed after the opening.   Weighted Error Value: White=0.14 (very precise) /Black=0.04 (flawless)} 0-1

[Event "Czech Championship U20 Open 2023"]
[Site "Jaromerice nad Rokytnou"]
[Date "2023.03.17"]
[Round "10.4"]
[White "Ocelak, Jakub"]
[Black "Mica, Marek"]
[Result "1/2-1/2"]
[ECO "A15"]
[WhiteElo "2190"]
[BlackElo "2248"]
[Annotator "TA"]
[PlyCount "60"]
[EventDate "2023.03.10"]
[EventType "tourn"]
[EventCountry "CZE"]
[SourceTitle "playchess.com"]
[Source "ChessBase"]
[SourceQuality "1"]
[TimeControl "40/5400+30:1800+30"]

{[%evp 13,60,10,17,11,24,14,17,0,0,0,0,0,4,0,0,-8,0,0,0,0,0,0,0,0,0,0,0,0,0,0,0,0,0,0,0,0,0,0,0,0,0,0,0,0,0,0,0,0,0]} 1. c4 {[%emt 0:00:07]} Nf6 {[%emt 0:00:20]} 2. Nf3 {[%emt 0:00:17]} e6 {[%emt 0:00:27]} 3. Nc3 {[%emt 0:00:21]} d5 {[%emt 0:00:34]} 4. d4 {[%emt 0:00:03]} dxc4 {[%emt 0:01:42]} 5. Qa4+ {[%emt 0:00:46]} Nbd7 {[%emt 0:04:27]} 6. e4 {[%emt 0:06:18]} a6 {[%emt 0:00:59]} 7. Bxc4 {[%emt 0:00:40]} Rb8 {[%emt 0:00:43]} 8. Bd3 {[%emt 0:02:16] D23: Queen's Gambit Accepted: 3 Nf3 Nf6 sidelines.} b5 {[%emt 0:01:02]} 9. Qc2 {[%emt 0:03:56] Black should prevent e5.} Bb7 {[%emt 0:00:57] The position is equal.} 10. O-O {[%emt 0:03:56]} c5 {[%emt 0:05:09]} 11. Bf4 {[%emt 0:13:16]} Rc8 {[%emt 0:00:15]} 12. d5 {[%emt 0:01:05] aiming for dxe6.} c4 {[%emt 0:13:56]} 13. dxe6 {[%emt 0:02:39]} fxe6 {[%emt 0:03:21]} 14. Be2 {[%emt 0:00:07]} Bb4 {[%emt 0:04:36] [#]} (14... Be7 {looks sharper.} 15. Ng5 Nc5 16. Rad1 Nfd7) 15. Ng5 $146 {[%emt 0:03:32] And now e5 would win.} ({Predecessor:} 15. e5 Bxc3 16. bxc3 Nd5 17. Bg3 O-O 18. Nd4 Nc5 19. a4 Nf4 20. Rfd1 Qg5 21. axb5 axb5 {0-1 Opocensky,K-Lundin,E Olympiad-08 Final A 1939 (12)}) 15... e5 {[%emt 0:03:51]} 16. Bd2 {[%emt 0:01:47][%cal Oc3b5]} Nc5 {[%emt 0:06:40]} 17. Rad1 {[%emt 0:03:23][%cal Oc3b5]} O-O {[%emt 0:07:18]} 18. Nxb5 {[%emt 0:04:14][%mdl 64] [#] Discovered Attack} axb5 {[%emt 0:01:23]} 19. Bxb4 {[%emt 0:00:17]} Qb6 {[%emt 0:01:07]} 20. Bxc4+ {[%emt 0:12:37]} bxc4 {[%emt 0:01:21]} 21. Qxc4+ {[%emt 0:00:07]} Kh8 {[%emt 0:00:55] White must now prevent ...Na6.} 22. Bxc5 {[%emt 0:00:09]} Rxc5 {[%emt 0:00:33]} 23. Nf7+ {[%emt 0:00:05]} Kg8 {[%emt 0:03:19]} 24. Nh6+ {[%emt 0:00:05][%mdl 64] [#] Discovered Attack (Double check)} Kh8 {[%emt 0:00:08]} 25. Nf7+ {[%emt 0:00:04]} Kg8 {[%emt 0:00:41]} 26. Nh6+ {[%emt 0:00:05][%mdl 64] Discovered Attack (Double check)} Kh8 {[%emt 0:00:11]} 27. Nf7+ {[%emt 0:00:05]} Kg8 {[%emt 0:00:19]} 28. Nh6+ {[%emt 0:00:04][%mdl 64] Discovered Attack (Double check)} Kh8 {[%emt 0:00:11]} 29. Nf7+ {[%emt 0:00:05]} Kg8 {[%emt 0:00:06]} 30. Nh6+ {[%emt 0:00:03][%mdl 64] Discovered Attack (Double check)} Kh8 {A rather calm draw.   Weighted Error Value: White=0.02 (flawless) /Black=0.01 (flawless)} 1/2-1/2

[Event "Czech Championship U20 Open 2023"]
[Site "Jaromerice nad Rokytnou"]
[Date "2023.03.17"]
[Round "10.5"]
[White "Hrbek, Stepan"]
[Black "Frank, Adam"]
[Result "1/2-1/2"]
[ECO "A05"]
[WhiteElo "2340"]
[BlackElo "2391"]
[Annotator "TA"]
[PlyCount "110"]
[EventDate "2023.03.10"]
[EventType "tourn"]
[EventCountry "CZE"]
[SourceTitle "playchess.com"]
[Source "ChessBase"]
[SourceQuality "1"]
[TimeControl "40/5400+30:1800+30"]

{[%evp 10,110,15,27,42,39,27,36,48,46,48,47,43,41,70,70,65,59,61,50,60,48,70,66,76,78,100,72,116,75,128,116,197,120,115,77,77,66,71,57,64,65,63,54,71,47,64,36,72,66,78,68,78,85,87,64,119,77,70,50,47,56,48,8,8,2,0,0,121,113,112,111,118,118,145,8,8,0,129,0,13,6,6,13,13,0,0,0,8,8,8,0,0,0,0,0,0,0,0,0,0,0,0]} 1. Nf3 {[%emt 0:01:04]} Nf6 {[%emt 0:00:09]} 2. g3 {[%emt 0:00:32]} g6 {[%emt 0:00:18]} 3. b3 {[%emt 0:00:16]} Bg7 {[%emt 0:00:04]} 4. Bb2 {[%emt 0:00:09]} d6 {[%emt 0:00:11]} 5. d4 {[%emt 0:00:28]} O-O {[%emt 0:02:56]} 6. Bg2 {[%emt 0:00:17]} Ne4 {[%emt 0:01:49] A49: 1 d4 Nf6 2 Nf3 g6 3 g3: Anti-King's Indian systems.} 7. Nbd2 {[%emt 0:05:10] has lost popularity (7.0-0).} Nxd2 {[%emt 0:01:05]} 8. Qxd2 {[%emt 0:00:39]} c5 {[%emt 0:00:04] White is slightly better.} 9. c4 {[%emt 0:07:14]} cxd4 {[%emt 0:10:34]} 10. Nxd4 {[%emt 0:01:58]} Qb6 {[%emt 0:02:41]} 11. O-O {[%emt 0:01:29] [#]} Nc6 $146 {[%emt 0:00:04]} ({Predecessor:} 11... Bd7 12. Rac1 a5 13. Bc3 Re8 14. Qb2 a4 15. Nb5 Bxc3 16. Nxc3 Bc6 17. Rfd1 axb3 18. axb3 {1-0 Muse,M (2443)-Degraeve,J (2551) Bundesliga 0607 2006 (2.3)}) 12. Nxc6 {[%emt 0:01:34]} bxc6 {[%emt 0:00:05]} 13. Bxg7 {[%emt 0:00:09]} Kxg7 {[%emt 0:00:03]} 14. Qc3+ {[%emt 0:01:03]} Kg8 {[%emt 0:00:11] [#]} 15. c5 $1 {[%emt 0:00:06]} dxc5 {[%emt 0:03:40]} 16. Rac1 {[%emt 0:04:41]} Bb7 {[%emt 0:07:20]} 17. Qxc5 {[%emt 0:00:30]} Rfd8 {[%emt 0:00:04]} 18. Qg5 {[%emt 0:14:03]} (18. Bxc6 Qxc5 19. Rxc5 Bxc6 20. Rxc6 Rd2 $11) (18. Qxe7 {is interesting.} Re8 19. Qf6 Rxe2 20. Rfe1) 18... a5 {[%emt 0:07:47]} 19. Rc4 {[%emt 0:04:34]} Qb5 {[%emt 0:14:37]} (19... f6 $142 20. Qc1 Rd6) 20. Qe3 $16 {[%emt 0:03:40]} (20. Qxe7 Re8 21. Qf6 Rxe2 $14) 20... Rd6 {[%emt 0:03:26]} (20... Rd7 $16 {was worth a try.}) 21. Rh4 {[%emt 0:21:05]} (21. Qxe7 $6 Re6 22. Qd7 Rxe2 $16) (21. a4 $1 $18 {[%cal Ra4b5]} Qf5 22. Qxe7) 21... h5 {[%emt 0:00:30]} 22. Qxe7 {[%emt 0:02:32]} Re6 {[%emt 0:00:55]} 23. Qc7 {[%emt 0:00:47]} (23. Qd7 {simplifies} Rxe2 24. Re4 Rxe4 25. Bxe4 Qb4 26. Bf3) 23... Rc8 {[%emt 0:07:17]} 24. Qd7 {[%emt 0:00:08] Strongly threatening Rf4.} Rxe2 {[%emt 0:03:35]} 25. Rd1 {[%emt 0:05:27] Threatens to win with Rf4.} Qc5 {[%emt 0:02:31]} 26. Rf4 {[%emt 0:02:34] Active counter play!} (26. Qxb7 $2 {leads to mate.} Qxf2+ 27. Kh1 Qxg2#) 26... Re7 {[%emt 0:00:05]} 27. Qd2 {[%emt 0:02:04]} Rce8 {[%emt 0:00:38]} 28. Bf3 {[%emt 0:01:19] Against Re2} Ba6 {[%emt 0:03:43]} 29. Kg2 {[%emt 0:04:07]} Be2 {[%emt 0:00:33]} 30. Rc1 {[%emt 0:00:06][%cal Bd1c1,Bc1c4,Bc4a4][%mdl 32]} Bxf3+ {[%emt 0:00:03]} 31. Rxf3 {[%emt 0:00:05]} Qb6 {[%emt 0:03:48]} 32. Rc4 {[%emt 0:05:39]} Qc7 {[%emt 0:03:45]} (32... c5 $14) 33. Ra4 {[%emt 0:01:14]} (33. Qc3 {feels hotter.} Re6 34. Rc5 Ra8 35. Rf4) 33... Re5 {[%emt 0:00:37]} 34. h4 {[%emt 0:00:34]} Rd5 {[%emt 0:02:53]} 35. Qc3 {[%emt 0:01:01]} Re6 {[%emt 0:01:25]} 36. Rc4 {[%emt 0:01:56]} Rd1 {[%emt 0:03:31]} 37. Rd4 {[%emt 0:04:25]} Rxd4 {[%emt 0:00:16]} 38. Qxd4 {[%emt 0:00:02]} Qe5 {[%emt 0:00:13]} (38... Rd6 $11 39. Qe5 c5) 39. Qxe5 {[%emt 0:00:29]} Rxe5 {[%emt 0:00:03][%mdl 4096] Endgame KR-KR} 40. Rf4 {[%emt 0:02:12]} Kf8 {[%emt 0:02:14]} 41. Rc4 {[%emt 0:32:44] Against Rc5} Re2 {[%emt 0:30:05] [#]} 42. Ra4 {[%emt 0:00:18]} ({Reject} 42. Rxc6 $6 Rxa2 43. Rc5 Rb2 $11) ({White has to play} 42. a4 $1 $16) 42... Re5 $11 {[%emt 0:00:04]} 43. Rc4 {[%emt 0:00:00]} ({White should play} 43. f3 $11) 43... Re2 $16 {[%emt 0:00:00] [#]} 44. Ra4 {[%emt 0:00:00]} ({Of course not} 44. Rxc6 $6 Rxa2 45. Rc5 Ke7 $11) (44. a4 $1 $16) 44... Re5 $11 {[%emt 0:00:00] The position is equal.} 45. Kf3 {[%emt 0:00:00]} Ke7 {[%emt 0:00:00]} 46. Re4 {[%emt 0:00:00]} Kd6 {[%emt 0:00:00]} 47. Rxe5 {[%emt 0:00:00]} Kxe5 {[%emt 0:00:00] KP-KP} 48. Ke3 {[%emt 0:00:00]} f6 {[%emt 0:00:00][%cal Bf7f6,Bf6f5][%mdl 32]} 49. f4+ {[%emt 0:00:00]} Kd5 {[%emt 0:01:58]} 50. Kd3 {[%emt 0:00:00] Ke3 is the strong threat.} Kc5 {[%emt 0:02:40]} 51. g4 {[%emt 0:00:00] Black must now prevent f5.} f5 {[%emt 0:00:18]} 52. g5 {[%emt 0:00:00]} Kd5 {[%emt 0:06:24]} 53. Ke3 {[%emt 0:00:00]} Kc5 $1 {[%emt 0:00:41]} 54. Kd3 {[%emt 0:00:00]} (54. a3 $5) 54... Kd5 {[%emt 0:00:05]} 55. Ke3 {[%emt 0:00:24]} Kc5 $1 {[%emt 0:00:05] Weighted Error Value: White=0.19 (very precise) /Black=0.13 (very precise)} 1/2-1/2

[Event "Czech Championship U20 Open 2023"]
[Site "Jaromerice nad Rokytnou"]
[Date "2023.03.17"]
[Round "10.6"]
[White "Jun, Rudolf"]
[Black "Kubiczek, Michal"]
[Result "1/2-1/2"]
[ECO "B15"]
[WhiteElo "2152"]
[BlackElo "2087"]
[Annotator "TA"]
[PlyCount "143"]
[EventDate "2023.03.10"]
[EventType "tourn"]
[EventCountry "CZE"]
[SourceTitle "playchess.com"]
[Source "ChessBase"]
[SourceQuality "1"]
[TimeControl "40/5400+30:1800+30"]

{[%evp 11,143,0,2,2,2,10,11,0,9,0,5,0,0,0,8,-10,0,0,0,0,0,-30,-2,-14,7,0,21,8,26,27,54,49,52,0,49,22,45,37,30,0,42,14,9,0,0,0,0,-39,0,0,0,0,0,0,47,53,175,119,121,20,204,0,0,0,0,-93,-110,-133,-119,-133,-46,-77,-100,-85,-45,-45,-45,-45,-45,-45,-45,-46,-45,-46,-45,-45,0,-11,0,0,0,0,0,0,0,0,0,0,0,0,0,0,0,0,0,0,0,-11,0,0,0,0,0,0,0,0,-8,-11,0,0,0,0,0,0,0,0,0,0,0,0,0,0,0,0]} 1. e4 {[%emt 0:00:09]} c6 {[%emt 0:00:19]} 2. d4 {[%emt 0:01:09]} d5 {[%emt 0:00:11]} 3. Nd2 {[%emt 0:03:49]} dxe4 {[%emt 0:00:38]} 4. Nxe4 {[%emt 0:00:12]} Nf6 {[%emt 0:00:11]} 5. Nc3 {[%emt 0:01:06]} Bf5 {[%emt 0:08:43]} 6. Nf3 {[%emt 0:01:13]} e6 {[%emt 0:00:30]} 7. Bd3 {[%emt 0:00:37] B18: Classical Caro-Kann: 4...Bf5 sidelines.} Bxd3 {[%emt 0:00:35]} 8. Qxd3 {[%emt 0:00:07]} Bd6 {[%emt 0:04:27]} 9. O-O {[%emt 0:00:45]} Nbd7 {[%emt 0:01:23] [#]} 10. a4 $146 {[%emt 0:01:44]} ({Predecessor:} 10. Bg5 O-O 11. Ne5 Nxe5 12. dxe5 Bxe5 13. Qxd8 Rfxd8 14. Rfe1 Bxc3 15. bxc3 Rd5 16. Bxf6 gxf6 {0-1 Bagga,K (1059)-Hackett,W (1530) BCF-chT2 U18 1920 (4NCL) online 2020 (7.68)}) 10... a5 {[%emt 0:03:14]} 11. Bd2 {[%emt 0:02:40]} Qc7 {[%emt 0:01:59]} 12. Rfe1 {[%emt 0:03:48]} O-O {[%emt 0:02:57]} 13. g3 {[%emt 0:14:16]} Rfe8 {[%emt 0:05:06]} 14. Ng5 {[%emt 0:11:07]} h6 {[%emt 0:08:17]} 15. Nge4 {[%emt 0:01:25]} Be7 {[%emt 0:02:01]} 16. Qf3 {[%emt 0:08:52]} Nxe4 {[%emt 0:02:20]} 17. Nxe4 {[%emt 0:00:12]} Qd8 {[%emt 0:06:27]} (17... Qb6 $5 {[%cal Rb6b2]}) 18. c4 {[%emt 0:10:34]} Nf6 {[%emt 0:02:51]} (18... f5 $5 19. Nc3 $8 Bf6 $11) 19. Rad1 {[%emt 0:02:02]} Nxe4 {[%emt 0:02:07]} ({But not} 19... Qxd4 20. Bc3 Qxc4 21. Nxf6+ Bxf6 22. Bxf6 gxf6 23. Qxf6 $16) 20. Rxe4 {[%emt 0:02:18]} Bf6 {[%emt 0:04:14]} 21. Rg4 {[%emt 0:09:17]} Kh8 {[%emt 0:09:11]} 22. Re4 {[%emt 0:03:26]} Kg8 $1 {[%emt 0:03:36]} 23. h4 {[%emt 0:00:06]} Qe7 {[%emt 0:08:15]} (23... b5 {looks sharper.} 24. b3 bxa4 25. bxa4 Bxd4 26. Bg5 hxg5 27. Rexd4 Qf6) 24. Rg4 {[%emt 0:03:19]} Kh8 {[%emt 0:00:49]} 25. Re4 {[%emt 0:00:05]} Kg8 {[%emt 0:00:07]} 26. b3 {[%emt 0:02:13][%cal Od4d5]} Red8 {[%emt 0:01:20]} 27. Qh5 {[%emt 0:01:57]} Rxd4 {[%emt 0:02:55]} 28. Rxd4 {[%emt 0:01:03]} Bxd4 {[%emt 0:00:02]} 29. Bxa5 {[%emt 0:08:44]} (29. Bxh6 $5 {[%cal Rd1d4]} Rd8 30. Be3 Bxe3 31. fxe3 $11) 29... g6 {[%emt 0:01:07]} 30. Qxh6 {[%emt 0:01:16]} Bxf2+ {[%emt 0:00:09]} 31. Kxf2 {[%emt 0:00:16]} Rxa5 $11 {[%emt 0:00:04][%mdl 4096] Endgame KQR-KQR} 32. Qd2 {[%emt 0:02:09]} Rf5+ {[%emt 0:01:45]} (32... Qc5+ $11 33. Kg2 Qh5) 33. Kg2 $14 {[%emt 0:00:17]} Qc5 {[%emt 0:01:38]} ({Black should try} 33... Qa3 $14) 34. Qd4 {[%emt 0:01:26]} (34. g4 $18 Rf6 35. Qd4 Qxd4 36. Rxd4) 34... b5 {[%emt 0:10:07]} 35. g4 {[%emt 0:03:18]} (35. Qxc5 $16 {Threatening mate with Rd8+.} Rxc5 36. cxb5 cxb5 37. a5) 35... Re5 $2 {[%emt 0:00:16] [#]} (35... Qxd4 $11 36. Rxd4 Re5) 36. Kf3 $2 {[%emt 0:01:01]} (36. Qxc5 $18 Rxc5 37. cxb5 Rc2+ 38. Kf3 cxb5 39. a5 (39. axb5 Rc3+ 40. Kf4 Rxb3 $11)) 36... Qxd4 $11 {[%emt 0:00:58]} 37. Rxd4 {[%emt 0:00:04] aiming for Re4.} bxa4 {[%emt 0:00:28] KR-KR} 38. b4 {[%emt 0:00:49]} (38. bxa4 $11 Ra5 39. Rd6) 38... Re1 $17 {[%emt 0:00:51]} 39. Rd8+ {[%emt 0:00:19]} Kg7 {[%emt 0:00:06]} 40. Ra8 {[%emt 0:00:31] [#]} Ra1 {[%emt 0:00:58]} (40... Rc1 $1 $17 {[%cal Rc1c3] White must now prevent ...Rc3+.} 41. b5 Rc3+ 42. Ke2 Rxc4 43. bxc6 Rxc6 44. Rxa4 f5) 41. b5 {[%emt 0:12:37]} cxb5 {[%emt 0:00:45]} 42. cxb5 {[%emt 0:01:12]} a3 {[%emt 0:00:44]} 43. g5 {[%emt 0:02:21]} a2 {[%emt 0:01:03] ( -> ...Rf1+)} (43... Rb1 {simplifies} 44. Rxa3 Rxb5 45. Ra8 Rb4) 44. Kg2 {[%emt 0:00:05] Wards off Rf1} Rb1 {[%emt 0:02:34]} 45. Rxa2 {[%emt 0:00:06]} Rxb5 {[%emt 0:00:08]} 46. Ra7 {[%emt 0:00:35]} Rb3 {[%emt 0:01:47]} 47. Kh2 {[%emt 0:02:25]} Rd3 {[%emt 0:01:26]} 48. Ra8 {[%emt 0:01:27]} e5 {[%emt 0:08:17]} 49. Re8 {[%emt 0:00:24] The position is equal.} Re3 {[%emt 0:00:55]} 50. Re7 {[%emt 0:02:13]} Kf8 {[%emt 0:01:02]} 51. Ra7 {[%emt 0:00:10]} Ke8 {[%emt 0:01:27]} 52. Kg2 {[%emt 0:00:13]} Re4 {[%emt 0:04:43]} 53. Kg3 {[%emt 0:00:06]} Rf4 {[%emt 0:04:30]} 54. Rb7 {[%emt 0:00:11]} Rf5 {[%emt 0:00:27]} 55. Kg4 {[%emt 0:00:37]} Rf1 {[%emt 0:01:15]} 56. Kg3 {[%emt 0:00:22]} Kf8 {[%emt 0:01:16]} 57. Ra7 {[%emt 0:00:28]} Rg1+ {[%emt 0:01:06]} 58. Kh2 {[%emt 0:00:56]} Rb1 {[%emt 0:00:34]} 59. Kg3 {[%emt 0:00:25]} Rf1 {[%emt 0:01:22]} 60. Rb7 {[%emt 0:00:10]} Rd1 {[%emt 0:04:30]} 61. Rb5 {[%emt 0:02:15]} Re1 {[%emt 0:00:59]} 62. Rb7 {[%emt 0:00:06]} Re3+ {[%emt 0:00:48]} 63. Kg4 {[%emt 0:00:14]} Re4+ {[%emt 0:02:51]} 64. Kg3 {[%emt 0:00:05]} f5 {[%emt 0:00:48] Hoping for ...Rg4+.} (64... Re2 {simplifies} 65. Kf3 Rh2 66. Rb5 Rxh4 67. Rxe5 Ra4) 65. gxf6 {[%emt 0:00:08]} Rf4 {[%emt 0:00:11]} 66. Re7 {[%emt 0:00:33]} Rf5 {[%emt 0:00:14]} 67. Kg4 {[%emt 0:00:12]} Rxf6 {[%emt 0:01:14]} 68. Rxe5 {[%emt 0:00:07]} Kg7 {[%emt 0:00:07]} 69. Kg5 {[%emt 0:00:06]} Rf5+ {[%emt 0:00:08]} 70. Rxf5 {[%emt 0:00:05]} gxf5 {[%emt 0:00:04]} 71. Kxf5 {[%emt 0:00:04]} Kh8 {[%emt 0:00:04]} 72. h5 {[%emt 0:00:03] Weighted Error Value: White=0.22 (precise) /Black=0.14 (very precise)} 1/2-1/2

[Event "Czech Championship U20 Open 2023"]
[Site "Jaromerice nad Rokytnou"]
[Date "2023.03.18"]
[Round "11.1"]
[White "Kubiczek, Michal"]
[Black "Hlavina, Matous"]
[Result "0-1"]
[ECO "A40"]
[WhiteElo "2087"]
[BlackElo "2091"]
[Annotator "TA"]
[PlyCount "62"]
[EventDate "2023.03.10"]
[EventType "tourn"]
[EventCountry "CZE"]
[SourceTitle "playchess.com"]
[Source "ChessBase"]
[SourceQuality "1"]
[TimeControl "40/5400+30:1800+30"]

{[%evp 10,62,37,-8,0,-2,0,0,0,0,0,-2,23,16,21,15,62,64,57,56,47,22,21,19,13,13,37,31,39,37,37,-43,0,-95,-110,-93,-118,-87,-104,-427,-424,-409,-355,-792,-792,-1763,-1824,-1525,-1487,-29981,-29970,-29988,-29989,-29990,-721]} 1. d4 {[%emt 0:00:03]} g6 {[%emt 0:05:28]} 2. c4 {[%emt 0:00:40]} f5 {[%emt 0:00:43]} 3. Nc3 {[%emt 0:03:38]} Nf6 {[%emt 0:00:06]} 4. g3 {[%emt 0:04:34]} Bg7 {[%emt 0:00:06]} 5. Bg2 {[%emt 0:00:05]} O-O {[%emt 0:00:07]} 6. e4 {[%emt 0:04:44]} fxe4 {[%emt 0:09:47] A86: Dutch Defence: Leningrad System: Unusual lines and 5 Nh3.} 7. Nxe4 {[%emt 0:01:03]} Nxe4 {[%emt 0:00:08]} 8. Bxe4 {[%emt 0:00:09]} Nc6 {[%emt 0:00:34] The position is equal.} 9. Ne2 {[%emt 0:01:18]} d6 {[%emt 0:00:53]} 10. O-O {[%emt 0:02:16]} Bg4 {[%emt 0:03:02][%cal Oc6d4] Hoping for ...Nxd4!} 11. f3 {[%emt 0:06:03]} Bh3 {[%emt 0:04:16]} 12. Rf2 {[%emt 0:01:21]} Bd7 {[%emt 0:05:59]} (12... Qd7 $11 {feels stronger.}) 13. Be3 $14 {[%emt 0:03:31]} Kh8 {[%emt 0:04:38] [#]} 14. d5 $146 {[%emt 0:09:41]} ({Predecessor:} 14. Qd2 e5 15. f4 Bf5 16. Bxf5 Rxf5 17. Raf1 e4 18. d5 Nb8 19. Nc3 Qe7 20. Bd4 Nd7 21. Re1 Raf8 22. Re3 Qf7 23. Rfe2 Re8 24. Bxg7+ Kxg7 {½-½ Ozgur,S (1439)-Kutuk,A (1608) TUR-chT2 Konya 2015 (6.10)}) 14... Ne5 {[%emt 0:00:34]} 15. Bd4 {[%emt 0:00:08]} c5 {[%emt 0:13:44]} (15... Nxc4 $2 16. Bxg7+ Kxg7 17. Qd4+ Ne5 18. f4 $18) 16. dxc6 {[%emt 0:05:55]} bxc6 {[%emt 0:01:55]} 17. Qd2 {[%emt 0:06:29]} Rb8 {[%emt 0:02:16]} 18. b3 {[%emt 0:04:24]} a5 {[%emt 0:07:49][%cal Oa5a4]} 19. Re1 {[%emt 0:04:01]} a4 {[%emt 0:06:09]} 20. Qc2 {[%emt 0:04:37]} (20. b4 $14) 20... Qa5 {[%emt 0:04:16]} (20... axb3 {simplifies} 21. axb3 Rf7 22. Ref1 Qc8) 21. Rb1 {[%emt 0:05:19] [#]} (21. Bc3 $11 {keeps the balance.} axb3 22. axb3) 21... d5 $1 $17 {[%emt 0:05:02]} 22. b4 {[%emt 0:06:46]} Rxb4 {[%emt 0:01:08] Black is more active.} 23. Rxb4 {[%emt 0:01:14]} Qxb4 {[%emt 0:00:27]} 24. Bxe5 $4 {[%emt 0:01:20][%mdl 8192] This costs White the game.} (24. cxd5 $17 cxd5 25. Bxd5) 24... Bxe5 $19 {[%emt 0:00:39]} 25. cxd5 {[%emt 0:00:41] White is weak on the dark squares} cxd5 {[%emt 0:00:13]} 26. Bxd5 $2 {[%emt 0:00:38]} (26. Bd3) 26... Bh3 {[%emt 0:02:19] A strong pair of Bishops.} 27. Qc1 {[%emt 0:07:22] Prevents Qe1+} Rc8 {[%emt 0:00:36]} 28. Qd1 {[%emt 0:02:25]} Rd8 {[%emt 0:00:17][%cal Od8d5] ( -> ...Rxd5!)} 29. Nf4 {[%emt 0:03:33]} Bxf4 {[%emt 0:01:42][%mdl 64] Remove Defender. Black mates.} 30. gxf4 {[%emt 0:00:41] [#]} Rxd5 $1 {[%emt 0:00:16][%mdl 576] Deflection, Back Rank} 31. Qa1+ {[%emt 0:00:33]} (31. Qc1 Qxf4) 31... Qd4 {[%emt 0:00:09] Weighted Error Value: White=0.90/Black=0.07 (flawless)} (31... Kg8 $142 32. f5 Re5 33. Rg2 Re1+ 34. Kf2 Qd2+ 35. Kg3 Qxg2+ 36. Kh4 Re4+ {[%mdl 64] Deflection} 37. fxe4 Qg4#) 0-1